[Event "DVM U12w 2024"]
[Site "Bad Homburg"]
[Date "2024.12.29"]
[Round "6"]
[White "Bacakova, Johanna"]
[Black "Nuzhnaia, Daria"]
[Result "0-1"]
[ECO "B21"]
[WhiteElo "1045"]
[BlackElo "831"]
[Annotator "NA RC"]
[PlyCount "98"]
[EventDate "2024.12.23"]
[EventType "team-tourn"]
[EventRounds "7"]
[EventCountry "GER"]
[SourceTitle "playchess.com"]
[Source "ChessBase"]
[SourceQuality "1"]
[TimeControl "40/5400+30:1800+30"]

1. e4 {[%emt 0:00:02]} c5 {[%emt 0:00:06]} 2. d4 {[%emt 0:00:11]} cxd4 {[%emt 0:00:30]} 3. c3 {[%emt 0:00:24]} dxc3 {[%emt 0:00:00]} 4. Nxc3 {[%emt 0:00:10]} d6 {[%emt 0:00:00]} 5. Nf3 {[%emt 0:00:12]} Nf6 {[%emt 0:00:08]} 6. Bc4 {[%emt 0:01:14]} Bd7 {[%emt 0:00:10]} 7. O-O {[%emt 0:02:22]} e6 {[%emt 0:00:26]} 8. Qe2 {[%emt 0:03:31]} Be7 {[%emt 0:00:52]} 9. Rd1 {[%emt 0:02:24]} O-O {[%emt 0:01:07]} 10. Bf4 {[%emt 0:03:05]} Nc6 {[%emt 0:00:24]} 11. Rac1 {[%emt 0:03:00]} h6 {[%emt 0:00:41]} 12. h3 {[%emt 0:02:56]} e5 {[%emt 0:00:32]} 13. Bg3 {[%emt 0:04:38]} Be6 {[%emt 0:00:37]} 14. Bxe6 {[%emt 0:04:19]} fxe6 {[%emt 0:03:33]} 15. Nxe5 {[%emt 0:05:09]} Nxe5 {[%emt 0:01:04]} 16. Bxe5 {[%emt 0:00:53]} Nd7 {[%emt 0:03:38]} 17. Bxd6 {[%emt 0:01:34]} Rc8 {[%emt 0:01:36]} 18. Bxe7 {[%emt 0:04:42]} Qxe7 {[%emt 0:00:18]} 19. Qg4 {[%emt 0:03:26]} Ne5 {[%emt 0:01:20]} 20. Qg3 {[%emt 0:03:26]} Nc4 {[%emt 0:01:51]} 21. b3 {[%emt 0:04:58]} Nb6 {[%emt 0:01:21]} 22. Ne2 {[%emt 0:01:24]} Qa3 {[%emt 0:01:33]} 23. Rc3 {[%emt 0:07:46]} Qxa2 {[%emt 0:00:38]} 24. Nd4 {[%emt 0:03:12]} Rxc3 {[%emt 0:01:02]} 25. Qh4 {[%emt 0:09:13]} e5 {[%emt 0:00:53]} 26. Ne6 {[%emt 0:05:02]} Rfc8 {[%emt 0:02:41]} 27. Qe7 {[%emt 0:06:53]} R8c7 {[%emt 0:07:38]} 28. Qf8+ {[%emt 0:02:49]} Kh7 {[%emt 0:00:16]} 29. Qf5+ {[%emt 0:02:50]} g6 {[%emt 0:00:55]} 30. Rd7+ {[%emt 0:08:55]} Rxd7 {[%emt 0:00:23]} 31. Nf8+ {[%emt 0:01:21]} Kg8 {[%emt 0:00:43]} 32. Nxg6 {[%emt 0:03:24]} Qb1+ {[%emt 0:00:30]} 33. Kh2 {[%emt 0:00:23]} Rf7 {[%emt 0:00:28]} 34. Qe6 {[%emt 0:00:48]} Qxb3 {[%emt 0:00:27]} 35. Qe8+ {[%emt 0:00:32]} Kg7 {[%emt 0:00:19]} 36. Nxe5 {[%emt 0:00:40]} Rcc7 {[%emt 0:01:44]} 37. f3 {[%emt 0:00:34]} Rce7 {[%emt 0:00:17]} 38. Qd8 {[%emt 0:00:32]} Rxe5 {[%emt 0:00:12]} 39. Qd4 {[%emt 0:00:28]} Rfe7 {[%emt 0:00:21]} 40. Qd6 {[%emt 0:00:27]} Qe6 {[%emt 0:00:17]} 41. Qd4 {[%emt 0:30:33]} Rd7 {[%emt 0:30:25]} 42. Qe3 {[%emt 0:00:33]} Rh5 {[%emt 0:00:19]} 43. Qc3+ {[%emt 0:00:22]} Kg6 {[%emt 0:00:18]} 44. Qc2 {[%emt 0:00:53]} Qe5+ {[%emt 0:00:20]} 45. Kh1 {[%emt 0:00:09]} Nc4 {[%emt 0:00:24]} 46. Qe2 {[%emt 0:00:34]} Rd2 {[%emt 0:00:24]} 47. Qe1 {[%emt 0:00:23]} Rxh3+ {[%emt 0:00:31]} 48. Kg1 {[%emt 0:00:30]} Qh2+ {[%emt 0:00:24]} 49. Kf1 {[%emt 0:00:13]} Qh1# {[%emt 0:00:10]} 0-1

[Event "DVM U12w 2024"]
[Site "Bad Homburg"]
[Date "2024.12.29"]
[Round "6"]
[White "Scarlat-Timofte, Elena"]
[Black "Naz Öksüz, Meryem"]
[Result "0-1"]
[ECO "B01"]
[WhiteElo "1024"]
[BlackElo "1296"]
[Annotator "NA"]
[PlyCount "114"]
[EventDate "2024.12.23"]
[EventType "team-tourn"]
[EventRounds "7"]
[EventCountry "GER"]
[SourceTitle "playchess.com"]
[Source "ChessBase"]
[SourceQuality "1"]
[TimeControl "40/5400+30:1800+30"]

1. e4 {[%emt 0:00:01]} d5 {[%emt 0:00:25]} 2. exd5 {[%emt 0:00:07]} Qxd5 {[%emt 0:00:40]} 3. Nc3 {[%emt 0:00:06]} Qa5 {[%emt 0:01:40]} 4. d4 {[%emt 0:00:56]} Nf6 {[%emt 0:02:18]} 5. Nf3 {[%emt 0:00:50]} Bg4 {[%emt 0:00:50]} 6. Be2 {[%emt 0:02:44]} g6 {[%emt 0:01:20]} 7. Ne5 {[%emt 0:03:28]} Bxe2 {[%emt 0:01:01]} 8. Qxe2 {[%emt 0:00:27]} Nd5 {[%emt 0:05:00]} 9. Qb5+ {[%emt 0:01:08]} Qxb5 {[%emt 0:01:09]} 10. Nxb5 {[%emt 0:00:15]} Bg7 {[%emt 0:01:19]} 11. Ng4 {[%emt 0:05:23]} Na6 {[%emt 0:01:13]} 12. O-O {[%emt 0:02:20]} O-O {[%emt 0:00:26]} 13. Bh6 {[%emt 0:00:19]} Ndb4 {[%emt 0:03:44]} 14. Bxg7 {[%emt 0:01:22]} Kxg7 {[%emt 0:00:27]} 15. c3 {[%emt 0:00:27]} Nd3 {[%emt 0:00:24]} 16. b4 {[%emt 0:02:54]} c6 {[%emt 0:00:51]} 17. Na3 {[%emt 0:00:35]} f5 {[%emt 0:01:39]} 18. Ne5 {[%emt 0:00:41]} Nxe5 {[%emt 0:00:47]} 19. dxe5 {[%emt 0:00:15]} Rfd8 {[%emt 0:03:10]} 20. Rad1 {[%emt 0:02:52]} Nc7 {[%emt 0:00:00]} 21. Nc4 {[%emt 0:01:22]} Rxd1 {[%emt 0:02:29]} 22. Rxd1 {[%emt 0:00:12]} Nd5 {[%emt 0:00:10]} 23. Rd3 {[%emt 0:01:26]} Nf4 {[%emt 0:00:31]} 24. Rd2 {[%emt 0:03:52]} Nd5 {[%emt 0:02:45]} 25. Rc2 {[%emt 0:04:26]} h5 {[%emt 0:03:17]} 26. Ne3 {[%emt 0:02:09]} Nxe3 {[%emt 0:00:19]} 27. fxe3 {[%emt 0:00:07]} Rd8 {[%emt 0:00:08]} 28. Rc1 {[%emt 0:00:34]} b6 {[%emt 0:00:40]} 29. a3 {[%emt 0:05:15]} Rd2 {[%emt 0:04:17]} 30. h4 {[%emt 0:03:26]} Re2 {[%emt 0:00:00]} 31. Kf1 {[%emt 0:00:44]} Rxe3 {[%emt 0:00:03]} 32. a4 {[%emt 0:00:40]} Rxe5 {[%emt 0:01:31]} 33. Re1 {[%emt 0:02:09]} Rxe1+ {[%emt 0:00:34]} 34. Kxe1 {[%emt 0:00:06]} Kf6 {[%emt 0:00:17]} 35. Kd2 {[%emt 0:00:10]} Ke5 {[%emt 0:00:19]} 36. Kd3 {[%emt 0:00:16]} b5 {[%emt 0:00:32]} 37. axb5 {[%emt 0:01:27]} cxb5 {[%emt 0:02:51]} 38. c4 {[%emt 0:01:07]} bxc4+ {[%emt 0:00:42]} 39. Kxc4 {[%emt 0:00:13]} Kd6 {[%emt 0:00:35]} 40. b5 {[%emt 0:02:52]} e5 {[%emt 0:00:35]} 41. Kd3 {[%emt 0:34:05]} Kc5 {[%emt 0:30:38]} 42. Ke3 {[%emt 0:01:59]} Kxb5 {[%emt 0:00:24]} 43. Kf3 {[%emt 0:02:06]} a5 {[%emt 0:00:06]} 44. g4 {[%emt 0:00:55]} hxg4+ {[%emt 0:00:18]} 45. Kg3 {[%emt 0:00:08]} a4 {[%emt 0:00:06]} 46. h5 {[%emt 0:00:06]} gxh5 {[%emt 0:00:07]} 47. Kh4 {[%emt 0:00:06]} a3 {[%emt 0:00:13]} 48. Kxh5 {[%emt 0:00:06]} a2 {[%emt 0:00:03]} 49. Kg5 {[%emt 0:00:10]} a1=Q {[%emt 0:00:14]} 50. Kxf5 {[%emt 0:00:09]} g3 {[%emt 0:00:28]} 51. Ke6 {[%emt 0:00:39]} g2 {[%emt 0:00:13]} 52. Kd6 {[%emt 0:00:35]} g1=R {[%emt 0:00:11]} 53. Kd5 {[%emt 0:00:30]} Qd4+ {[%emt 0:01:13]} 54. Ke6 {[%emt 0:00:09]} Rg6+ {[%emt 0:00:07]} 55. Ke7 {[%emt 0:00:53]} Qa7+ {[%emt 0:00:16]} 56. Kf8 {[%emt 0:00:16]} Rb6 {[%emt 0:00:07]} 57. Ke8 {[%emt 0:00:08]} Rb8# {[%emt 0:00:39]} 0-1

[Event "DVM U12w 2024"]
[Site "Bad Homburg"]
[Date "2024.12.29"]
[Round "6"]
[White "Khachaturyan, Viktoria"]
[Black "Ruddat, Maila"]
[Result "0-1"]
[ECO "D61"]
[WhiteElo "966"]
[BlackElo "1486"]
[Annotator "NA RC"]
[PlyCount "47"]
[EventDate "2024.12.23"]
[EventType "team-tourn"]
[EventRounds "7"]
[EventCountry "GER"]
[SourceTitle "playchess.com"]
[Source "ChessBase"]
[SourceQuality "1"]
[TimeControl "40/5400+30:1800+30"]

1. d4 {[%emt 0:00:03]} d5 {[%emt 0:00:03]} 2. c4 {[%emt 0:00:23]} e6 {[%emt 0:00:12]} 3. Nc3 {[%emt 0:00:07]} Nf6 {[%emt 0:00:10]} 4. Bg5 {[%emt 0:00:06]} Be7 {[%emt 0:00:11]} 5. e3 {[%emt 0:00:41]} O-O {[%emt 0:00:32]} 6. Nf3 {[%emt 0:00:05]} Nbd7 {[%emt 0:00:30]} 7. Qc2 {[%emt 0:01:33]} h6 {[%emt 0:00:28]} 8. Bf4 {[%emt 0:00:12]} a6 {[%emt 0:01:13]} 9. c5 {[%emt 0:00:34]} Nh5 {[%emt 0:01:37]} 10. Be5 {[%emt 0:00:27]} Nxe5 {[%emt 0:04:51]} 11. Nxe5 {[%emt 0:00:20]} Nf6 {[%emt 0:03:54]} 12. Bd3 {[%emt 0:00:21]} Nd7 {[%emt 0:01:15]} 13. Nxd7 {[%emt 0:02:14]} Bxd7 {[%emt 0:00:29]} 14. O-O {[%emt 0:00:09]} b6 {[%emt 0:01:32]} 15. b4 {[%emt 0:01:49]} b5 {[%emt 0:01:25]} 16. a4 {[%emt 0:04:49]} c6 {[%emt 0:00:55]} 17. Kh1 {[%emt 0:05:06]} Kh8 {[%emt 0:01:31]} 18. a5 {[%emt 0:01:11]} Bf6 {[%emt 0:03:27]} 19. Ne2 {[%emt 0:01:52]} e5 {[%emt 0:01:19]} 20. f3 {[%emt 0:00:06]} Qc7 {[%emt 0:01:44]} 21. Qb2 {[%emt 0:05:01]} Rae8 {[%emt 0:00:41]} 22. Nc3 {[%emt 0:06:43]} exd4 {[%emt 0:01:30]} 23. exd4 {[%emt 0:00:06]} Re3 {[%emt 0:02:11]} 24. Rad1 {[%emt 0:00:25]} 0-1

[Event "DVM U12w 2024"]
[Site "Bad Homburg"]
[Date "2024.12.29"]
[Round "6"]
[White "Wang, Lexin Selina"]
[Black "Yamshchikova, Oleksandra"]
[Result "0-1"]
[ECO "C50"]
[WhiteElo "920"]
[BlackElo "974"]
[Annotator "NA RC"]
[PlyCount "39"]
[EventDate "2024.12.23"]
[EventType "team-tourn"]
[EventRounds "7"]
[EventCountry "GER"]
[SourceTitle "playchess.com"]
[Source "ChessBase"]
[SourceQuality "1"]
[TimeControl "40/5400+30:1800+30"]

1. e4 {[%emt 0:00:02]} e5 {[%emt 0:00:04]} 2. Nf3 {[%emt 0:00:04]} Nc6 {[%emt 0:00:05]} 3. Bc4 {[%emt 0:00:10]} Bc5 {[%emt 0:00:06]} 4. Nc3 {[%emt 0:02:04]} d6 {[%emt 0:00:29]} 5. O-O {[%emt 0:00:36]} Nf6 {[%emt 0:00:06]} 6. d3 {[%emt 0:01:02]} Be6 {[%emt 0:00:18]} 7. Bxe6 {[%emt 0:07:33]} fxe6 {[%emt 0:00:10]} 8. Be3 {[%emt 0:01:40]} Bb6 {[%emt 0:00:09]} 9. Re1 {[%emt 0:15:46]} O-O {[%emt 0:00:38]} 10. Bg5 {[%emt 0:06:08]} Qd7 {[%emt 0:02:16]} 11. h3 {[%emt 0:07:23]} h6 {[%emt 0:00:56]} 12. Be3 {[%emt 0:05:24]} Nh7 {[%emt 0:02:02]} 13. d4 {[%emt 0:04:11]} exd4 {[%emt 0:00:50]} 14. Bxd4 {[%emt 0:00:30]} Nxd4 {[%emt 0:00:30]} 15. Nxd4 {[%emt 0:00:30]} e5 {[%emt 0:00:30]} 16. Nf3 {[%emt 0:00:30]} Rf6 {[%emt 0:00:30]} 17. Rf1 {[%emt 0:00:30]} Raf8 {[%emt 0:00:30]} 18. Nd5 {[%emt 0:00:30]} R6f7 {[%emt 0:00:30]} 19. Nxb6 {[%emt 0:00:30]} axb6 {[%emt 0:00:30]} 20. b3 {[%emt 0:16:26]} 0-1

[Event "DVM U12w 2024"]
[Site "Bad Homburg"]
[Date "2024.12.29"]
[Round "6"]
[White "Schindler, Mailin"]
[Black "Gelbach, Amelia"]
[Result "1-0"]
[ECO "B40"]
[WhiteElo "884"]
[BlackElo "809"]
[Annotator "NA RC"]
[PlyCount "33"]
[EventDate "2024.12.23"]
[EventType "team-tourn"]
[EventRounds "7"]
[EventCountry "GER"]
[SourceTitle "playchess.com"]
[Source "ChessBase"]
[SourceQuality "1"]
[TimeControl "40/5400+30:1800+30"]

1. e4 {[%emt 0:00:03]} c5 {[%emt 0:00:10]} 2. Nf3 {[%emt 0:00:19]} e6 {[%emt 0:00:15]} 3. d4 {[%emt 0:00:14]} cxd4 {[%emt 0:00:18]} 4. Nxd4 {[%emt 0:00:16]} Nf6 {[%emt 0:00:40]} 5. Nc3 {[%emt 0:00:42]} Bb4 {[%emt 0:02:49]} 6. Nf3 {[%emt 0:01:47]} Nxe4 {[%emt 0:00:41]} 7. Bd2 {[%emt 0:01:03]} Bxc3 {[%emt 0:02:24]} 8. bxc3 {[%emt 0:00:19]} O-O {[%emt 0:00:38]} 9. Bd3 {[%emt 0:00:19]} Nd6 {[%emt 0:00:50]} 10. Ng5 {[%emt 0:00:18]} g6 {[%emt 0:00:35]} 11. Ne4 {[%emt 0:01:10]} Nf5 {[%emt 0:00:49]} 12. O-O {[%emt 0:00:49]} Nc6 {[%emt 0:00:16]} 13. Bg5 {[%emt 0:00:18]} Qc7 {[%emt 0:01:01]} 14. Nf6+ {[%emt 0:01:09]} Kh8 {[%emt 0:00:48]} 15. Qg4 {[%emt 0:00:45]} Ne5 {[%emt 0:01:30]} 16. Qh3 {[%emt 0:00:24]} Qxc3 {[%emt 0:01:04]} 17. Qxh7# {[%emt 0:00:09]} 1-0

[Event "DVM U12w 2024"]
[Site "Bad Homburg"]
[Date "2024.12.29"]
[Round "6"]
[White "He, Siqi"]
[Black "Augustin, Luisa"]
[Result "0-1"]
[ECO "C50"]
[WhiteElo "870"]
[BlackElo "797"]
[Annotator "NA RC"]
[PlyCount "44"]
[EventDate "2024.12.23"]
[EventType "team-tourn"]
[EventRounds "7"]
[EventCountry "GER"]
[SourceTitle "playchess.com"]
[Source "ChessBase"]
[SourceQuality "1"]
[TimeControl "40/5400+30:1800+30"]

1. e4 {[%emt 0:00:02]} e5 {[%emt 0:00:07]} 2. Nf3 {[%emt 0:00:12]} Nc6 {[%emt 0:00:09]} 3. Bc4 {[%emt 0:00:07]} Bc5 {[%emt 0:00:20]} 4. d3 {[%emt 0:00:10]} h6 {[%emt 0:00:09]} 5. Nc3 {[%emt 0:00:20]} Nf6 {[%emt 0:00:10]} 6. O-O {[%emt 0:00:39]} d6 {[%emt 0:00:08]} 7. h3 {[%emt 0:00:08]} g5 {[%emt 0:00:09]} 8. a3 {[%emt 0:00:12]} g4 {[%emt 0:00:05]} 9. hxg4 {[%emt 0:00:42]} Bxg4 {[%emt 0:00:13]} 10. b4 {[%emt 0:00:12]} Bd4 {[%emt 0:00:28]} 11. Bb2 {[%emt 0:00:16]} a6 {[%emt 0:01:50]} 12. Bd5 {[%emt 0:01:11]} Qd7 {[%emt 0:01:11]} 13. Ra2 {[%emt 0:01:02]} Rg8 {[%emt 0:00:51]} 14. g3 {[%emt 0:01:32]} Bh3 {[%emt 0:02:04]} 15. Re1 {[%emt 0:00:58]} Qg4 {[%emt 0:00:47]} 16. Nh2 {[%emt 0:00:26]} Bxf2+ {[%emt 0:01:47]} 17. Kxf2 {[%emt 0:00:59]} Qxg3+ {[%emt 0:00:07]} 18. Ke2 {[%emt 0:02:23]} Qxh2+ {[%emt 0:02:03]} 19. Ke3 {[%emt 0:00:21]} Rg3+ {[%emt 0:00:07]} 20. Qf3 {[%emt 0:00:38]} Rxf3+ {[%emt 0:00:11]} 21. Kxf3 {[%emt 0:00:06]} Nd4+ {[%emt 0:00:14]} 22. Ke3 {[%emt 0:00:33]} Ng4# {[%emt 0:00:58]} 0-1

[Event "DVM U12w 2024"]
[Site "Bad Homburg"]
[Date "2024.12.29"]
[Round "6"]
[White "Gelbach, Julietta"]
[Black "Schindler, Amilia"]
[Result "1-0"]
[ECO "C54"]
[WhiteElo "855"]
[BlackElo "790"]
[Annotator "NA RC"]
[PlyCount "85"]
[EventDate "2024.12.23"]
[EventType "team-tourn"]
[EventRounds "7"]
[EventCountry "GER"]
[SourceTitle "playchess.com"]
[Source "ChessBase"]
[SourceQuality "1"]
[TimeControl "40/5400+30:1800+30"]

1. e4 {[%emt 0:00:04]} e5 {[%emt 0:00:09]} 2. Nf3 {[%emt 0:00:05]} Nc6 {[%emt 0:00:13]} 3. Bc4 {[%emt 0:00:09]} Bc5 {[%emt 0:00:21]} 4. d3 {[%emt 0:00:18]} Nf6 {[%emt 0:00:17]} 5. c3 {[%emt 0:00:19]} d6 {[%emt 0:00:39]} 6. h3 {[%emt 0:00:18]} h6 {[%emt 0:00:06]} 7. a4 {[%emt 0:00:15]} O-O {[%emt 0:00:13]} 8. b4 {[%emt 0:00:37]} d5 {[%emt 0:01:03]} 9. exd5 {[%emt 0:00:44]} Nxb4 {[%emt 0:00:30]} 10. cxb4 {[%emt 0:00:33]} Bxb4+ {[%emt 0:00:20]} 11. Bd2 {[%emt 0:00:21]} Bc5 {[%emt 0:00:28]} 12. O-O {[%emt 0:00:52]} Nxd5 {[%emt 0:00:31]} 13. Nxe5 {[%emt 0:00:49]} Nb6 {[%emt 0:00:36]} 14. Bxf7+ {[%emt 0:02:09]} Kh7 {[%emt 0:00:27]} 15. Bb3 {[%emt 0:01:21]} Bd4 {[%emt 0:01:51]} 16. Bc3 {[%emt 0:00:51]} Bxe5 {[%emt 0:00:38]} 17. Bxe5 {[%emt 0:00:21]} Qg5 {[%emt 0:01:08]} 18. Bg3 {[%emt 0:01:56]} Qf6 {[%emt 0:06:15]} 19. Nd2 {[%emt 0:01:00]} Bf5 {[%emt 0:00:39]} 20. Ne4 {[%emt 0:01:07]} Bxe4 {[%emt 0:00:39]} 21. dxe4 {[%emt 0:00:22]} Qc3 {[%emt 0:02:40]} 22. Qc2 {[%emt 0:01:29]} Qd4 {[%emt 0:00:35]} 23. e5+ {[%emt 0:00:28]} Kh8 {[%emt 0:00:18]} 24. Qxc7 {[%emt 0:00:55]} Qd3 {[%emt 0:01:31]} 25. Rab1 {[%emt 0:01:44]} Qe2 {[%emt 0:02:06]} 26. Qxb7 {[%emt 0:00:37]} Qh5 {[%emt 0:01:20]} 27. e6 {[%emt 0:00:27]} Rfe8 {[%emt 0:00:33]} 28. Rfe1 {[%emt 0:00:17]} Nd5 {[%emt 0:03:09]} 29. Bxd5 {[%emt 0:00:24]} Rad8 {[%emt 0:01:17]} 30. Bc6 {[%emt 0:00:19]} Rg8 {[%emt 0:00:31]} 31. e7 {[%emt 0:00:12]} Rd2 {[%emt 0:01:21]} 32. e8=Q {[%emt 0:00:28]} Rxe8 {[%emt 0:00:27]} 33. Rxe8+ {[%emt 0:01:17]} Kh7 {[%emt 0:00:19]} 34. Be4+ {[%emt 0:00:12]} Qg6 {[%emt 0:00:13]} 35. Bxg6+ {[%emt 0:00:15]} Kxg6 {[%emt 0:00:12]} 36. Qe4+ {[%emt 0:00:12]} Kf7 {[%emt 0:00:24]} 37. Qe7+ {[%emt 0:00:13]} Kg6 {[%emt 0:00:07]} 38. Qe6+ {[%emt 0:00:26]} Kh7 {[%emt 0:00:19]} 39. Qg8+ {[%emt 0:00:38]} Kg6 {[%emt 0:00:09]} 40. Re6+ {[%emt 0:00:15]} Kh5 {[%emt 0:00:06]} 41. Rb5+ {[%emt 0:30:10]} Rd5 {[%emt 0:30:16]} 42. Rxd5+ {[%emt 0:00:11]} g5 {[%emt 0:00:16]} 43. Qg6# {[%emt 0:00:09]} 1-0

[Event "DVM U12w 2024"]
[Site "Bad Homburg"]
[Date "2024.12.29"]
[Round "6"]
[White "Lachenmaier, Alica"]
[Black "Dinges, Mara"]
[Result "1-0"]
[ECO "A25"]
[WhiteElo "824"]
[BlackElo "854"]
[Annotator "NA RC"]
[PlyCount "73"]
[EventDate "2024.12.23"]
[EventType "team-tourn"]
[EventRounds "7"]
[EventCountry "GER"]
[SourceTitle "playchess.com"]
[Source "ChessBase"]
[SourceQuality "1"]
[TimeControl "40/5400+30:1800+30"]

1. c4 {[%emt 0:00:03]} e5 {[%emt 0:00:20]} 2. Nc3 {[%emt 0:00:10]} Nc6 {[%emt 0:00:14]} 3. g3 {[%emt 0:00:25]} Nf6 {[%emt 0:00:17]} 4. Bg2 {[%emt 0:00:00]} Bc5 {[%emt 0:00:12]} 5. e3 {[%emt 0:00:05]} d5 {[%emt 0:00:39]} 6. cxd5 {[%emt 0:00:13]} Nb4 {[%emt 0:00:22]} 7. d4 {[%emt 0:00:33]} exd4 {[%emt 0:00:35]} 8. exd4 {[%emt 0:00:09]} Be7 {[%emt 0:00:18]} 9. Nge2 {[%emt 0:00:18]} Nbxd5 {[%emt 0:00:33]} 10. Qa4+ {[%emt 0:00:44]} Bd7 {[%emt 0:00:12]} 11. Qc2 {[%emt 0:00:23]} O-O {[%emt 0:00:21]} 12. Nxd5 {[%emt 0:00:10]} Bc6 {[%emt 0:02:03]} 13. Nxe7+ {[%emt 0:00:21]} Qxe7 {[%emt 0:00:27]} 14. Bxc6 {[%emt 0:00:14]} bxc6 {[%emt 0:00:20]} 15. O-O {[%emt 0:00:08]} Rad8 {[%emt 0:01:18]} 16. Re1 {[%emt 0:00:44]} Ng4 {[%emt 0:03:01]} 17. Bd2 {[%emt 0:00:56]} Qd6 {[%emt 0:00:55]} 18. Rad1 {[%emt 0:00:27]} Qf6 {[%emt 0:00:54]} 19. Nf4 {[%emt 0:00:47]} Qh6 {[%emt 0:01:42]} 20. h3 {[%emt 0:00:13]} Qd6 {[%emt 0:02:04]} 21. hxg4 {[%emt 0:02:12]} Qxd4 {[%emt 0:02:28]} 22. Qxc6 {[%emt 0:00:33]} Qxb2 {[%emt 0:04:41]} 23. Bc3 {[%emt 0:00:04]} Qb8 {[%emt 0:00:00]} 24. Qe4 {[%emt 0:00:55]} Rfe8 {[%emt 0:01:43]} 25. Rxd8 {[%emt 0:00:44]} Rxd8 {[%emt 0:00:18]} 26. Qe5 {[%emt 0:00:17]} f6 {[%emt 0:00:58]} 27. Qe7 {[%emt 0:00:18]} Qc8 {[%emt 0:05:30]} 28. Ne6 {[%emt 0:00:26]} Rd7 {[%emt 0:00:39]} 29. Qc5 {[%emt 0:00:45]} Qe8 {[%emt 0:00:56]} 30. Nxc7 {[%emt 0:00:17]} Qf7 {[%emt 0:01:50]} 31. Re8+ {[%emt 0:00:33]} Qxe8 {[%emt 0:00:11]} 32. Nxe8 {[%emt 0:01:14]} h6 {[%emt 0:00:52]} 33. Qe3 {[%emt 0:00:22]} Kf7 {[%emt 0:01:31]} 34. Bd4 {[%emt 0:00:41]} Re7 {[%emt 0:00:38]} 35. Nd6+ {[%emt 0:00:51]} Kf8 {[%emt 0:00:30]} 36. Qf3 {[%emt 0:00:22]} Re6 {[%emt 0:00:35]} 37. Qa8+ {[%emt 0:00:14]} 1-0

[Event "DVM U12w 2024"]
[Site "Bad Homburg"]
[Date "2024.12.29"]
[Round "6"]
[White "Senthilkumar, Vasanthi"]
[Black "Rempel, Katharina"]
[Result "0-1"]
[ECO "C50"]
[WhiteElo "818"]
[BlackElo "851"]
[Annotator "NA RC"]
[PlyCount "60"]
[EventDate "2024.12.23"]
[EventType "team-tourn"]
[EventRounds "7"]
[EventCountry "GER"]
[SourceTitle "playchess.com"]
[Source "ChessBase"]
[SourceQuality "1"]
[TimeControl "40/5400+30:1800+30"]

1. e4 {[%emt 0:00:02]} e5 {[%emt 0:00:10]} 2. Nf3 {[%emt 0:00:07]} Nc6 {[%emt 0:00:13]} 3. Bc4 {[%emt 0:00:10]} Bc5 {[%emt 0:00:12]} 4. Nc3 {[%emt 0:00:10]} d6 {[%emt 0:00:23]} 5. h3 {[%emt 0:00:08]} Nf6 {[%emt 0:00:19]} 6. d3 {[%emt 0:00:14]} Be6 {[%emt 0:00:55]} 7. Bxe6 {[%emt 0:00:16]} fxe6 {[%emt 0:00:07]} 8. Bg5 {[%emt 0:00:14]} Qd7 {[%emt 0:01:18]} 9. O-O {[%emt 0:00:17]} O-O-O {[%emt 0:00:19]} 10. Re1 {[%emt 0:00:16]} h6 {[%emt 0:00:45]} 11. Bxf6 {[%emt 0:00:28]} gxf6 {[%emt 0:00:11]} 12. Qd2 {[%emt 0:01:17]} Rhg8 {[%emt 0:00:30]} 13. Rad1 {[%emt 0:01:39]} Qg7 {[%emt 0:00:13]} 14. Nh4 {[%emt 0:00:17]} Nd4 {[%emt 0:03:08]} 15. Ne2 {[%emt 0:02:15]} f5 {[%emt 0:03:23]} 16. Nxd4 {[%emt 0:01:10]} Bxd4 {[%emt 0:00:09]} 17. c3 {[%emt 0:01:35]} Bc5 {[%emt 0:00:55]} 18. b4 {[%emt 0:00:43]} Bb6 {[%emt 0:00:31]} 19. a4 {[%emt 0:00:41]} a6 {[%emt 0:00:18]} 20. a5 {[%emt 0:00:17]} Ba7 {[%emt 0:00:08]} 21. g3 {[%emt 0:02:32]} Rdf8 {[%emt 0:01:25]} 22. d4 {[%emt 0:01:06]} exd4 {[%emt 0:00:33]} 23. cxd4 {[%emt 0:00:19]} f4 {[%emt 0:02:03]} 24. Rc1 {[%emt 0:01:10]} Bxd4 {[%emt 0:00:44]} 25. Qc2 {[%emt 0:00:18]} c6 {[%emt 0:00:39]} 26. Red1 {[%emt 0:01:24]} fxg3 {[%emt 0:00:33]} 27. Qc4 {[%emt 0:01:40]} gxf2+ {[%emt 0:01:44]} 28. Kh1 {[%emt 0:01:33]} Qg3 {[%emt 0:00:59]} 29. Qf1 {[%emt 0:00:31]} Be5 {[%emt 0:00:45]} 30. Rd2 {[%emt 0:02:21]} Qh2# {[%emt 0:00:43]} 0-1

[Event "DVM U12w 2024"]
[Site "Bad Homburg"]
[Date "2024.12.29"]
[Round "6"]
[White "Henn, Lena"]
[Black "Kessler, Lisbeth Erna"]
[Result "0-1"]
[ECO "C56"]
[WhiteElo "808"]
[BlackElo "926"]
[Annotator "NA RC"]
[PlyCount "56"]
[EventDate "2024.12.23"]
[EventType "team-tourn"]
[EventRounds "7"]
[EventCountry "GER"]
[SourceTitle "playchess.com"]
[Source "ChessBase"]
[SourceQuality "1"]
[TimeControl "40/5400+30:1800+30"]

1. e4 {[%emt 0:00:02]} e5 {[%emt 0:00:05]} 2. Nf3 {[%emt 0:00:04]} Nc6 {[%emt 0:00:07]} 3. d4 {[%emt 0:00:04]} exd4 {[%emt 0:00:06]} 4. Bc4 {[%emt 0:00:04]} Nf6 {[%emt 0:00:11]} 5. O-O {[%emt 0:00:11]} d6 {[%emt 0:01:13]} 6. c3 {[%emt 0:00:14]} dxc3 {[%emt 0:01:02]} 7. Nxc3 {[%emt 0:00:11]} Be6 {[%emt 0:00:26]} 8. Bxe6 {[%emt 0:00:26]} fxe6 {[%emt 0:00:09]} 9. b3 {[%emt 0:01:03]} d5 {[%emt 0:03:01]} 10. exd5 {[%emt 0:00:46]} exd5 {[%emt 0:00:11]} 11. Re1+ {[%emt 0:00:28]} Be7 {[%emt 0:00:27]} 12. Bb2 {[%emt 0:02:08]} d4 {[%emt 0:05:56]} 13. Ne4 {[%emt 0:00:57]} Nxe4 {[%emt 0:06:45]} 14. Rxe4 {[%emt 0:00:48]} Qd5 {[%emt 0:03:04]} 15. Re3 {[%emt 0:07:54]} O-O-O {[%emt 0:01:11]} 16. Nxd4 {[%emt 0:02:20]} Bc5 {[%emt 0:00:50]} 17. Rg3 {[%emt 0:06:21]} Rhf8 {[%emt 0:07:28]} 18. Qg4+ {[%emt 0:05:34]} Kb8 {[%emt 0:01:52]} 19. Nxc6+ {[%emt 0:03:00]} bxc6 {[%emt 0:01:10]} 20. Kh1 {[%emt 0:02:40]} Rf4 {[%emt 0:04:00]} 21. Qe2 {[%emt 0:02:13]} Rxf2 {[%emt 0:02:59]} 22. Qg4 {[%emt 0:03:08]} Rd2 {[%emt 0:00:40]} 23. h3 {[%emt 0:00:24]} Bf2 {[%emt 0:03:40]} 24. Qb4+ {[%emt 0:05:10]} Ka8 {[%emt 0:00:28]} 25. Rxg7 {[%emt 0:01:39]} Bb6 {[%emt 0:07:02]} 26. Bf6 {[%emt 0:04:00]} Rd7 {[%emt 0:01:37]} 27. Qf8+ {[%emt 0:00:37]} Kb7 {[%emt 0:01:30]} 28. Rxd7 {[%emt 0:01:41]} Qxg2# {[%emt 0:00:26]} 0-1